{"text_format":"1","workbook":"xlsx","n_sheets":7,"sheets":["Cover page","Versions","SCS charges 2018-19","Price capped services 2018- 19","Metering Service Charge 2018-19","Services with no charge","Public Lighting 2018-19"],"not_rendered":{"charts":0,"images":1,"macros":0,"external_links":25,"defined_names":840,"comments":0,"pivot_tables":0},"unopened":[],"bounds":{"document_bytes":16777216,"sheet_cells":100000,"rows_first":2000,"rows_last":500,"rows_between":2000,"halvings":0,"cell_chars":16384,"cell_head_chars":4096},"cells_cut":0,"cells_raw":0,"read":"whole","date_system":"1900"}

{"sheet":"Cover page","index":0,"n_rows":0,"n_cols":0,"rows_kept":0,"cut":false,"hidden":false,"merged":[]}

{"sheet":"Versions","index":1,"n_rows":3,"n_cols":3,"rows_kept":3,"cut":false,"hidden":false,"merged":[]}
[]
["Version","Date","Description"]
["v.1","2018-03-31","Draft submitted to the AER for approval"]

{"sheet":"SCS charges 2018-19","index":2,"n_rows":62,"n_cols":10,"rows_kept":62,"cut":false,"hidden":false,"merged":[[49,3,56,3],[2,0,21,0],[14,2,18,2],[14,1,18,1],[22,3,24,3],[22,2,24,2],[6,3,9,3],[10,3,13,3],[14,3,18,3],[2,3,5,3],[2,1,5,1],[6,1,9,1],[10,1,13,1],[2,2,5,2],[19,1,21,1],[34,2,36,2],[61,0,61,9],[40,1,41,1],[42,1,45,1],[46,1,48,1],[46,3,48,3],[46,2,48,2],[40,3,41,3],[40,2,41,2],[42,2,45,2],[22,0,60,0],[42,3,45,3],[37,1,39,1],[28,1,31,1],[49,1,56,1],[49,2,56,2],[37,2,39,2],[37,3,39,3],[2,6,2,9],[6,6,6,9],[10,6,10,9],[19,2,21,2],[25,3,27,3],[19,3,21,3],[25,2,27,2],[6,2,9,2],[10,2,13,2],[22,1,24,1],[25,1,27,1],[32,1,33,1],[34,1,36,1],[32,3,33,3],[34,3,36,3],[32,2,33,2],[28,2,31,2]]}
["                                                                            "]
["Tariff Class","Tariff Description ","NTC","Billing Code Permutations3","Tariff / \nCharge Element","Unit","DUOS1","JURISDICTIONAL1","DPPC1","NUOS1"]
["CAC","EG 11kV2","3000",null,"Supply","$/day","Site-specific prices are confidential"]
[null,null,null,null,"Demand","$/kVA/month",9.6509999999999998,0,1.3919999999999999,{"$f":"G4+H4+I4","v":11.042999999999999}]
[null,null,null,null,"Volume Off-Peak","c/kWh",0.39300000000000002,0,0.156,{"$f":"G5+H5+I5","v":0.54900000000000004}]
[null,null,null,null,"Volume Peak","c/kWh",0.39300000000000002,0,0.156,{"$f":"G6+H6+I6","v":0.54900000000000004}]
[null,"11kV Bus","4000",null,"Supply","$/day","Site-specific prices are confidential"]
[null,null,null,null,"Demand","$/kVA/month",6.6840000000000002,0,1.3919999999999999,{"$f":"G8+H8+I8","v":8.0760000000000005}]
[null,null,null,null,"Volume Off-Peak","c/kWh",4.3999999999999997E-2,0,6.9000000000000006E-2,0.113]
[null,null,null,null,"Volume Peak","c/kWh",4.3999999999999997E-2,0,6.9000000000000006E-2,0.113]
[null,"11kV Line","4500",null,"Supply","$/day","Site-specific prices are confidential"]
[null,null,null,null,"Demand","$/kVA/month",10.342000000000001,0,1.3919999999999999,{"$f":"G12+H12+I12","v":11.734}]
[null,null,null,null,"Volume Off-Peak","c/kWh",0.39300000000000002,0,0.156,0.54900000000000004]
[null,null,null,null,"Volume Peak","c/kWh",0.39300000000000002,0,0.156,0.54900000000000004]
[null,"Demand ToU 11kV","7400",null,"Supply - CAV","$/day/$M-CAV",30.428000000000001,0,0,30.428000000000001]
[null,null,null,null,"Supply - NCCAV","$/day/$M-NCCAV",68.441000000000003,0,0,68.441000000000003]
[null,null,null,null,"Peak Demand","$/kVA/month",8.2710000000000008,0,2.8039999999999998,11.075000000000001]
[null,null,null,null,"Excess Demand","$/kVA/month",1.6539999999999999,0,0.56100000000000005,2.2149999999999999]
[null,null,null,null,"Volume Flat","c/kWh",0.92600000000000005,0,0.40899999999999997,1.335]
[null,"HV Demand2","8000",null,"Supply","$/day",24.78,0,20.87,45.650000000000006]
[null,null,null,null,"Demand","$/kVA/month",9.8689999999999998,0,2.63,12.498999999999999]
[null,null,null,null,"Volume Flat","c/kWh",0.39300000000000002,0,0.35599999999999998,0.749]
["SAC","Demand Large","8100",null,"Supply","$/day",28.353999999999999,0,5.407,33.760999999999996]
[null,null,null,null,"Demand","$/kVA/month",13.898,0,2.7170000000000001,16.614999999999998]
[null,null,null,null,"Volume Flat","c/kWh",0.21299999999999999,0,0.159,0.372]
[null,"Demand Small","8300",null,"Supply","$/day",3.2040000000000002,0,1.3149999999999999,4.5190000000000001]
[null,null,null,null,"Demand","$/kVA/month",15.54,0,2.629,18.169]
[null,null,null,null,"Volume Flat","c/kWh",0,0,0.39200000000000002,0.39200000000000002]
[null,"Demand ToU LV","7200",null,"Supply","$/day",4.2610000000000001,0,0,4.2610000000000001]
[null,null,null,null,"Peak Demand","$/kVA/month",8.4160000000000004,0,2.7170000000000001,11.133000000000001]
[null,null,null,null,"Excess Demand","$/kVA/month",1.6830000000000001,0,0.54300000000000004,2.226]
[null,null,null,null,"Volume Flat","c/kWh",2.476,0,0.45900000000000002,2.9350000000000001]
[null,"Business Flat","8500","8500/8520/8550/8570","Supply","$/Day",0.46600000000000003,0,0.185,0.65100000000000002]
[null,null,null,null,"Volume Flat","c/kWh",8.0660000000000007,0,1.034,9.1000000000000014]
[null,"Business ToU","8800","8800/8820/8850/8870","Supply","$/day",0.46600000000000003,0,0.185,0.65100000000000002]
[null,null,null,null,"Volume Off-Peak","c/kWh",6.1870000000000003,0,0.75800000000000001,6.9450000000000003]
[null,null,null,null,"Volume Peak","c/kWh",9.7899999999999991,0,1.302,11.091999999999999]
[null,"Business Demand","7100","7100/7150","Supply","$/day",0.439,0,0,0.439]
[null,null,null,null,"Demand","$/kW/month",6.5519999999999996,0,2.1589999999999998,8.7109999999999985]
[null,null,null,null,"Volume Flat","c/kWh",4.109,0,0.10199999999999999,4.2110000000000003]
[null,"Residential Flat","8400","8400/8420/8450/8470","Supply","$/day",0.41399999999999998,0,6.6000000000000003E-2,0.48]
[null,null,null,null,"Volume Flat","c/kWh",7.0860000000000003,0,1.3420000000000001,8.4280000000000008]
[null,"Residential ToU","8900","8900/8920/8950/8970","Supply","$/day",0.41399999999999998,0,6.6000000000000003E-2,0.48]
[null,null,null,null,"Volume Off-Peak","c/kWh",5.5890000000000004,0,0.216,5.8050000000000006]
[null,null,null,null,"Volume Sholuder","c/kWh",6.0860000000000003,0,1.3420000000000001,7.4280000000000008]
[null,null,null,null,"Volume Peak","c/kWh",12.706,0,3.7749999999999999,16.480999999999998]
[null,"Residential Demand","7000","7000/7050","Supply","$/day",0.38,0,0,0.38]
[null,null,null,null,"Demand","$/kW/month",6.0839999999999996,0,1.6040000000000001,7.6879999999999997]
[null,null,null,null,"Volume Flat","c/kWh",2.2690000000000001,0,0.47199999999999998,2.7410000000000001]
[null,"Residential Lifestyle","6400","6400/6450","Network access allowance:"]
[null,null,null,null,"Access Band 1","$/month",22.263999999999999,0,2.0099999999999998,24.274000000000001]
[null,null,null,null,"Access Band 2","$/month",29.084,0,2.0099999999999998,31.094000000000001]
[null,null,null,null,"Access Band 3","$/month",35.904000000000003,0,2.0099999999999998,37.914000000000001]
[null,null,null,null,"Access Band 4","$/month",42.723999999999997,0,2.0099999999999998,44.733999999999995]
[null,null,null,null,"Access Band 5","$/month",49.543999999999997,0,2.0099999999999998,51.553999999999995]
[null,null,null,null,"Summer Peak Top-up","$/kWh/month",3.601,0,0,3.601]
[null,null,null,null,"Volume Flat","Volume Flat",1.6060000000000001,0,1.3480000000000001,2.9540000000000002]
[null,"Super Economy","9000","9000/9020/9050/9070","Volume Flat","c/kWh",4.6479999999999997,0,1.0669999999999999,{"$f":"G58+H58+I58","v":5.7149999999999999}]
[null,"Economy","9100","9100/9120/9150/9170","Volume Flat","c/kWh",5.8959999999999999,0,1.0669999999999999,{"$f":"G59+H59+I59","v":6.9630000000000001}]
[null,"Smart Control","7300","7300/7350","Volume Flat","c/kWh",2.2690000000000001,0,0.47199999999999998,{"$f":"G60+H60+I60","v":2.7410000000000001}]
[null,"Unmetered","9600",null,"Volume Flat","c/kWh",6.141,0,1.1339999999999999,{"$f":"G61+H61+I61","v":7.2750000000000004}]
["Notes:\n1. All prices exclude GST\n2. These tariffs are no longer offered \n3. Tariff duplicates in order to implement the various combination of Metering Service Charges."]

{"sheet":"Price capped services 2018- 19","index":3,"n_rows":217,"n_cols":9,"rows_kept":217,"cut":false,"hidden":false,"merged":[[209,3,209,4],[210,1,212,1],[210,3,210,4],[211,3,211,4],[212,3,212,4],[190,0,193,0],[190,1,193,1],[194,0,206,0],[194,1,206,1],[213,0,215,0],[209,0,212,0],[180,0,185,0],[180,1,185,1],[186,0,187,0],[141,0,175,0],[141,1,142,1],[143,1,144,1],[145,1,150,1],[151,1,161,1],[162,1,163,1],[137,3,137,4],[138,3,138,4],[164,1,169,1],[170,1,175,1],[176,0,179,0],[127,0,131,0],[127,1,129,1],[127,3,127,4],[128,3,128,4],[129,3,129,4],[130,3,130,4],[131,3,131,4],[132,0,136,0],[132,1,134,1],[132,3,132,4],[133,3,133,4],[134,3,134,4],[135,3,135,4],[136,3,136,4],[118,0,119,0],[118,1,119,1],[120,0,125,0],[120,1,125,1],[94,0,117,0],[94,1,99,1],[100,1,105,1],[106,1,111,1],[112,1,117,1],[88,0,93,0],[88,1,91,1],[92,1,93,1],[80,0,83,0],[80,1,83,1],[54,3,54,4],[55,3,55,4],[56,3,56,4],[57,3,57,4],[84,0,87,0],[84,1,87,1],[58,0,63,0],[58,1,63,1],[64,1,69,1],[70,1,73,1],[54,0,57,0],[54,1,57,1],[27,1,35,1],[64,0,79,0],[74,1,79,1],[1,0,1,7],[7,3,7,4],[8,3,8,4],[9,3,9,4],[11,3,11,4],[12,3,12,4],[14,1,23,1],[14,0,24,0],[36,1,38,1],[39,0,41,0],[39,1,41,1],[42,0,53,0],[42,1,53,1]]}
[]
["2018-19 Price Capped Services"]
[]
["CATEGORY","SERVICE DESCRIPTION","CHARGE TYPE","PEACE CHARGE CODE","Product Code","PERMUTATIONS","2018-19 ($/service) excluding GST1","2018-19 ($/service) including GST1"]
["Connections"]
["Pre-Connection Services"]
["Connection Applications Services"]
["Application assessment, design review and audit real estate development (sub-division) connection services - resubmission","Design Assessment and Preparation of Offer - Resubmission.","Price Cap","Charged Directly to Customer",null,null,173.88,{"$f":"ROUND(G8*1.1,2)","v":191.27}]
["Negotiation services involved in negotiating a connection agreement - simple","Standard jobs for Small Customer Connections and Real Estate Developments (sub-divisions). If service is non-standard, a quoted price may apply.","Price Cap","Charged Directly to Customer",null,null,1623.49,{"$f":"ROUND(G9*1.1,2)","v":1785.84}]
["Protection and Power Quality assessment prior to connection - simple","Solar PV 30-150kW \n","Price Cap","Charged Directly to Customer",null,null,4058.73,4464.6000000000004]
["Pre-Connection Consultation Services"]
["Site inspection in order to determine nature of connection","Small or large customer connection.","Price Cap","Charged Directly to Customer",null,null,347.78,{"$f":"ROUND(G12*1.1,2)","v":382.56}]
["Provision of site-specific connection information and advice for small or large customer connections.","Protection devices and settings, fault level, network information.","Price Cap","Charged Directly to Customer",null,null,695.56,765.12]
["Connection Services - Large Customer Connections"]
["Customer request a temporary connection for short term supply (includes metered and unmetered) - Simple\n\n","Customer requested temporary connection (short term) and recovery of the temporary builders supply.\n\n","Price Cap Sch 8",120,"NCT1MB","BUSINESS HOURS - NO CT",1510.56,{"$f":"ROUND(G15*1.1,2)","v":1661.62}]
[null,null,"Price Cap",124,"NCT1MA","AFTER HOURS - NO CT",2155.64,2371.1999999999998]
[null,null,"Price Cap",128,"NCT1MT","ANYTIME - NO CT",2155.64,2371.1999999999998]
[null,null,"Price Cap",125,"NCT1MAT","AFTER HOURS - NO CT - TRAFFIC CONTROL",3289.13,3618.04]
[null,null,"Price Cap",129,"NCT1MTT","ANYTIME - NO CT - TRAFFIC CONTROL",3289.13,3618.04]
[null,null,"Price Cap Sch 8",122,"NCT2MB","BUSINESS HOURS - CT",2612.0100000000002,2873.21]
[null,null,"Price Cap",126,"NCT2MA","AFTER HOURS - CT",3727.46,4100.21]
[null,null,"Price Cap",130,"NCT2MT","ANYTIME - CT",3727.46,4100.21]
[null,null,"Price Cap",127,"NCT2MAT","AFTER HOURS - CT - TRAFFIC CONTROL",4860.95,5347.05]
[null,null,"Price Cap",131,"NCT2MTT","ANYTIME - CT - TRAFFIC CONTROL",4860.95,5347.05]
[null,"Temporary Connection of unmetered equipment to an existing LV supply.","Price Cap Sch 8",1400,"TUMS",null,277.32,305.05]
["Post-connection Services"]
["Supply Abolishment - Simple","Request to de-energise an unmetered supply point.","Price Cap",328,"DNUMS",null,425.81,{"$f":"ROUND(G27*1.1,2)","v":468.39}]
[null,"Retailer requests the Service Provider to abolish supply at a specific connection point (simple). To be used for single dwellings and the community / unit one of multi-unit residential complexes.","Price Cap",800,"SA1","BUSINESS HOURS (excl meter removal)",485.35,{"$f":"ROUND(G28*1.1,2)","v":533.89}]
[null,null,"Price Cap",809,"SA1BHTC","BUSINESS HOURS + TRAFFIC CONTROL (excl meter removal)",1618.85,{"$f":"ROUND(G29*1.1,2)","v":1780.74}]
[0,null,"Price Cap",810,"SA4","Initial meter removal BUSINESS HOURS (includes travel)",196.69,{"$f":"ROUND(G30*1.1,2)","v":216.36}]
[null,null,"Price Cap",801,"SA1AH","AFTER HOURS (excl meter removal)",561.36,617.5]
[null,null,"Price Cap",805,"SA1AHT","AFTER HOURS + TRAFFIC CONTROL (excl meter removal)",1694.85,1864.34]
[null,null,"Price Cap",811,"SA4AH","Initial meter removal AFTER HOURS (includes travel)",280.69,308.76]
[null,null,"Price Cap",806,"SA1AT","ANYTIME (excl meter removal)",561.36,{"$f":"ROUND(G34*1.1,2)","v":617.5}]
[null,null,"Price Cap",807,"SA1ATT","ANYTIME + TRAFFIC CONTROL (excl meter removal)",1694.85,{"$f":"ROUND(G35*1.1,2)","v":1864.34}]
[0,null,"Price Cap",813,"SA4AT","Initial meter removal ANYTIME (includes travel)",280.69,308.76]
[0,"Retailer requests the Service Provider to abolish supply at a specific connection point (simple). To be used for multi-unit residential complexes for all units after the community / unit one - meter removal (charge per meter)","Price Cap",803,"SA3","BUSINESS HOURS (no travel)",128.5,141.35]
[0,0,"Price Cap",804,"SA3AH","AFTER HOURS (no travel)",183.43,201.77]
[0,0,"Price Cap",808,"SA3AT","ANYTIME (no travel)",183.43,201.77]
["Rearrange connection assets at customer's request - simple (upgrade from overhead to underground where main connection point is in existance)","Recovery of the overhead service and connection of the consumer mains to the pre-existing pillar for a customer requested conversion of existing overhead service to underground service.","Price Cap",1004,"MSOHtoUG","BUSINESS HOURS",259.63,285.58999999999997]
[0,0,"Price Cap",1019,"MSOHtoUGA","AFTER HOURS",370.5,407.55]
[0,0,"Price Cap",1035,"MSOHtoUGT","ANYTIME",370.5,407.55]
["Overhead Service Line Replacement at customers request (no material change to load)","Customer requests their existing overhead service to be replaced or relocated, e.g.as a result of point of attachment relocation. No material change to load. ","Price Cap",920,"MSOR1P2","Single Phase - BUSINESS HOURS",659.05,724.96]
[0,0,"Price Cap",921,"MSOR1P2A","Single Phase - AFTER HOURS",854.95,940.45]
[0,0,"Price Cap",923,"MSOR1P2T","Single Phase - ANYTIME",854.95,940.45]
[0,0,"Price Cap",559,"MSOR1PHTCB","Single Phase - BUSINESS HOURS + TRAFFIC CONTROL",1792.55,1971.81]
[0,0,"Price Cap",922,"MSOR1P2AT","Single Phase - AFTER HOURS + TRAFFIC CONTROL",1988.45,2187.3000000000002]
[0,0,"Price Cap",925,"MSOR1P2TT","Single Phase - ANYTIME + TRAFFIC CONTROL",1988.45,2187.3000000000002]
[0,0,"Price Cap",924,"MSOR3P2","Multi Phase - BUSINESS HOURS",925.5,1018.05]
[0,0,"Price Cap",927,"MSOR3P2A","Multi Phase - AFTER HOURS",1172.82,1290.0999999999999]
[0,0,"Price Cap",931,"MSOR3P2T","Multi Phase - ANYTIME",1172.82,1290.0999999999999]
[0,0,"Price Cap",560,"MSORMPHTCB","Multi Phase - BUSINESS HOURS + TRAFFIC CONTROL",2058.9899999999998,2264.89]
[0,0,"Price Cap",929,"MSOR3P2AT","Multi Phase - AFTER HOURS + TRAFFIC CONTROL",2306.3200000000002,2536.9499999999998]
[0,0,"Price Cap",933,"MSOR3P2TT","Multi Phase - ANYTIME + TRAFFIC CONTROL",2306.3200000000002,2536.9499999999998]
["Auditing services – auditing/re-inspection of connection assets after energisation to network - simple","Auditing / re-inspection of connection assets after energisation - real estate development (sub-division)\nNumber of new, modified or recovered sites (i.e. stations numbers excluding street light pits and conduits).","Price Cap","Charged Directly to Customer",null,"0-6",476.8,524.48]
[0,0,"Price Cap","Charged Directly to Customer",null,"7-30",762.88,839.17]
[0,0,"Price Cap","Charged Directly to Customer",null,"31-60",912.72,1003.99]
[0,0,"Price Cap","Charged Directly to Customer",null,"61+",1017.17,1118.8900000000001]
["Temporary disconnections and reconnections (which may involve a line drop) - Low Voltage","Temporary LV service disconnection / reconnection (No dismantling).","Price Cap",902,"MSDNNDB","No Dismantling - BUSINESS HOURS",372.4,409.64]
[0,0,"Price Cap",908,"MSDNNDA","No Dismantling - AFTER HOURS",531.42999999999995,584.57000000000005]
[0,0,"Price Cap",914,"MSDNNDT","No Dismantling - ANYTIME",531.42999999999995,584.57000000000005]
[0,"Temporary LV Service Disconnection/Reconnection (Dismantling - drop and re-erect service)","Price Cap",904,"MSDNPDB","Dismantling - BUSINESS HOURS",608.41999999999996,669.26]
[0,0,"Price Cap",910,"MSDNPDA","Dismantling - AFTER HOURS",868.24,955.06]
[0,0,"Price Cap",915,"MSDNPDT","Dismantling - ANYTIME",868.24,955.06]
["Customer initiated supply enhancement","Overhead Service Upgrade to Single Phase.","Price Cap",1008,"MSOU1P2","Single Phase Upgrade - BUSINESS HOURS",1087.95,1196.75]
[null,null,"Price Cap",1009,"MSOU1P1","Single Phase Upgrade (Fuse Only) - BUSINESS HOURS",188.81,207.69]
[null,0,"Price Cap",1053,"MSU1PHAH","Single Phase Upgrade - AFTER HOURS",1414.97,1556.47]
[null,null,"Price Cap",1056,"MSOU1P1AH ","Single Phase Upgrade (Fuse Only) - AFTER HOURS",269.45,296.39999999999998]
[null,0,"Price Cap",1055,"MSU1PHTCBH","Single Phase Upgrade - BUSINESS HOURS + TRAFFIC CONTROL",2221.46,2443.61]
[null,0,"Price Cap",1054,"MSU1PHTCAH","Single Phase Upgrade - AFTER HOURS + TRAFFIC CONTROL",2548.46,2803.31]
[null,"Overhead Service Upgrade to Multiphase.","Price Cap",1014,"MSOU3P1","Multi Phase Upgrade - BUSINESS HOURS",1226.1099999999999,1348.72,"includes upgrading from single phase or multi phase to muli phase"]
[null,0,"Price Cap",1000,"MSUMPHAH","Multi Phase Upgrade-AFTER HOURS",1646.08,1810.69,"includes upgrading from single phase or multi phase to muli phase"]
[null,0,"Price Cap",1001,"MSUMPHTC","Multi Phase Upgrade- BUSINESS HOURS - TRAFFIC CONTROL",2359.61,2595.5700000000002,"includes upgrading from single phase or multi phase to muli phase"]
[null,0,"Price Cap",1052,"MSUMPHTCAH","Multi Phase Upgrade  - AFTER HOURS - TRAFFIC CONTROL",2779.57,3057.53,"includes upgrading from single phase or multi phase to muli phase"]
[null,"Underground Service Upgrade.","Price Cap",1060,"MSUU1PHBH","BUSINESS HOURS - SINGLE PHASE",133.75,147.13]
[null,null,"Price Cap",1061,"MSUU1PHAH","AFTER HOURS - SINGLE PHASE",190.86,209.95]
[null,null,"Price Cap",1042,"MSUU3P","BUSINESS HOURS - TO MULTIPHASE",133.75,147.13]
[null,null,"Price Cap",1062,"MSUUMPHAH","AFTER HOURS - TO MULTIPHASE",190.86,209.95]
[null,null,"Price Cap",1063,"MSUUCTBH","BUSINESS HOURS - TO MULTIPHASE CT Metering",608.41999999999996,669.26]
[null,null,"Price Cap",1064,"MSUUCTAH","AFTER HOURS - TO MULTIPHASE CT Metering",868.24,955.06]
["Customer consultation or appointment.\n","A visit to the customers premise to advise on electrical supply matters, could be for various reasons.","Price Cap",952,"MSAPWR","Complex (customer requested)",236.03,259.63]
[null,null,"Price Cap",1074,"MCMSAPWR","Complex (Metering Coordinator/provider requested)",236.03,259.63]
[null,null,"Price Cap",953,"MSAPWRS","Simple (customer requested)",107.52,118.27]
[0,0,"Price Cap",1075,"MCMSAPWRS","Simple (Metering Coordinator/provider requested)",107.52,118.27]
["Customer requested works to allow customer or contractor to work close","Appointment negotiation and power isolation to allow third party to install contestable metering","Price Cap",1065,"SSWTI1M1V","1 man crew - initial visit",158.53,174.38]
[null,null,"Price Cap",1066,"SSWTI1M2V","1 man crew - subsequent visit",133.75,147.13]
[null,null,"Price Cap",1067,"SSWTI2M1V","2 man crew - initial visit",292.29000000000002,321.52]
[0,0,"Price Cap",1068,"SSWTI2M2V","2 man crew - subsequent visit",267.5,294.25]
["De-energisation","Retailer requested de-energisation of the customer's premises where the de-energisation can be performed at the premise ie by a method other than main switch seal (eg pole, pillar or meter isolation link).","Price Cap Sch 8",300,"DNSD1MB","NO CT",65.73,72.3]
[0,0,"Price Cap Sch 8",302,"DNSD2MB","CT",322.89,355.18]
[0,0,"Price Cap Sch 8",304,"DN$1MB","NON PAYMENT - NO CT",65.73,72.3]
[0,0,"Price Cap Sch 8",306,"DN$2MB","NON PAYMENT - CT",327.42,360.16]
[0,"Retailer requested de-energisation (MSS).","Price Cap Sch 8",320,"DNS","REASON OTHER THAN NON PAYMENT",21.53,23.68]
[0,0,"Price Cap Sch 8",324,"DNS$1MB","NON PAYMENT",21.53,23.68]
["Re-energisation","Retailer requests a re-energisation of the customer's premises where the customer has not paid their electricity account. No visual required.","Price Cap Sch 8",200,"RN$1MB","BUSINESS HOURS - NO CT",50.21,55.23]
[0,0,"Price Cap Sch 8",204,"RN$1MA","AFTER HOURS - NO CT",71.2,78.319999999999993]
[0,0,"Price Cap Sch 8",208,"RN$1MT","ANYTIME - NO CT",71.2,78.319999999999993]
[0,0,"Price Cap Sch 8",202,"RN$2MB","BUSINESS HOURS - CT",50.21,55.23]
[0,0,"Price Cap Sch 8",206,"RN$2MA","AFTER HOURS - CT",71.2,78.319999999999993]
[0,0,"Price Cap Sch 8",210,"RN$2MT","ANYTIME - CT",71.2,{"$f":"ROUND(G100*1.1,2)","v":78.319999999999993}]
[0,"Retailer requests a re-energisation for the customer's premises following a main switch seal (no visual required).","Price Cap Sch 8",406,"RNMSS","BUSINESS HOURS",12.12,13.33]
[0,0,"Price Cap Sch 8",408,"RNMSSA","AFTER HOURS",81.010000000000005,89.11]
[0,0,"Price Cap Sch 8",410,"RNMSST","ANYTIME",73.400000000000006,80.739999999999995]
[0,0,"Price Cap Sch 8",412,"RNS$1MB","BUSINESS HOURS - NON PAYMENT",49.68,54.65]
[0,0,"Price Cap Sch 8",416,"RNS$1MA","AFTER HOURS - NON PAYMENT",81.010000000000005,89.11]
[0,0,"Price Cap Sch 8",414,"RNS$1MT","ANYTIME - NON PAYMENT",73.400000000000006,80.739999999999995]
[0,"Retailer or metering coordinator/provider requests a visual examination upon re-energisation (physical or remote performed by either party) of the customer’s premises.","Price Cap Sch 8",224,"RNV1MB","BUSINESS HOURS - NO CT",115.34,126.87]
[0,0,"Price Cap Sch 8",228,"RNV1MA","AFTER HOURS - NO CT",164.38,180.82]
[0,0,"Price Cap Sch 8",232,"RNV1MT","ANYTIME - NO CT",163.99,180.39]
[0,0,"Price Cap Sch 8",226,"RNV2MB","BUSINESS HOURS - CT",295.81,325.39]
[0,0,"Price Cap Sch 8",230,"RNV2MA","AFTER HOURS - CT",408.8,449.68]
[0,0,"Price Cap Sch 8",234,"RNV2MT","ANYTIME - CT",446.88,491.57]
[0,"Retailer or metering coordinator/provider requests a visual examination upon re-energisation (physical or remote performed by either party) of the customer’s premises where the customer has not paid their electricity account. NMI de-energised > 30 days.","Price Cap Sch 8",212,"RN$V1MB","BUSINESS HOURS - NO CT",115.34,126.87]
[0,0,"Price Cap Sch 8",216,"RN$V1MA","AFTER HOURS - NO CT",164.38,180.82]
[0,0,"Price Cap Sch 8",220,"RN$V1MT","ANYTIME - NO CT",163.99,180.39]
[0,0,"Price Cap Sch 8",214,"RN$V2MB","BUSINESS HOURS - CT",295.81,325.39]
[0,0,"Price Cap Sch 8",218,"RN$V2MA","AFTER HOURS - CT",408.8,449.68]
[0,0,"Price Cap Sch 8",222,"RN$V2MT","ANYTIME - CT",446.88,491.57]
["Readings provided for an active site","Reading provided for an active site.","Price Cap",238,"RNNR","RETAIL REQUESTED FIELDWORK",10.25,11.28]
[null,null,"Price Cap",240,"RNRM","RETROSPECTIVE MOVE IN READ",10.25,11.28]
["Attending loss of supply (customer at fault)","EGX attending LV customers trouble call and found fault in LV customers installation/Non Energex Metering (includes tripped safety switch, internal fault, customers overload).","Price Cap",1500,"LOS","BUSINESS HOURS - Customer",236.03,259.63]
[null,null,"Price Cap",1501,"LOSMC","BUSINESS HOURS - Metering Provider",236.03,259.63]
[0,0,"Price Cap",1602,"LOST","AFTER HOURS - Customer",336.81,370.49]
[null,null,"Price Cap",1603,"LOSTMC","AFTER HOURS - Metering Provider",336.81,370.49]
[null,null,"Price Cap",1600,"LOSA","ANYTIME - Customer",336.81,370.49]
[0,0,"Price Cap",1601,"LOSAMC","ANYTIME - Metering Provider",336.81,370.49]
["Accreditation / Certification"]
["Accreditation of Design Consultants\n\nApplicant requests to obtain Energex accreditation to provide design services for real estate development (sub-division), Rate 2 public lighting, LCC & distribution works that are reticulated with Energex network (design accreditation)","DESKTOP MANAGEMENT SYSTEM EVALUATION. ","Price Cap","Charged Directly to Customer",null,"ISO9001 ACCREDITATION",10982.59,{"$f":"ROUND(G128*1.1,2)","v":12080.85}]
[0,0,"Price Cap","Charged Directly to Customer",null,"NO ISO9001 ACCREDITATION",12798.96,14078.86]
[0,0,"Price Cap","Charged Directly to Customer",null,"DESIGN SERVICE (RATE 2) ACCREDITATION",7504.81,8255.2900000000009]
[0,"ONSITE MANAGEMENT SYSTEM EVALUATION (irrespective of prior accreditations).","Price Cap","Charged Directly to Customer",null,null,726.56,799.22]
[0,"CAPABILITY EVALUATION (irrespective of prior accreditations).","Price Cap","Charged Directly to Customer",null,null,695.56,765.12]
["Accreditation of Alternative Service Providers\n\nApplicant requests to obtain Energex Accreditation to provide construction services for real estate development (sub-division) works that are reticulated with Energex network (Construction Accreditation)","DESKTOP MANAGEMENT SYSTEM EVALUATION","Price Cap","Charged Directly to Customer",null,"ISO9001/AS4801/ISO14001 ACCREDITATION",5356.15,5891.77]
[0,0,"Price Cap","Charged Directly to Customer",null,"NO ISO9001/AS4801/ISO14001 ACCREDITATION",10047.73,11052.5]
[0,0,"Price Cap","Charged Directly to Customer",null,"ADDITIONAL EGX ACCREDITATIONS WITH OR WITHOUT ISO9001/AS4801/ISO14001",5356.15,5891.77]
[0,"ONSITE MANAGEMENT SYSTEM EVALUATION (irrespective of prior accreditations).","Price Cap","Charged Directly to Customer",null,null,1453.1,1598.41]
[0,"CAPABILITY EVALUATION (irrespective of prior accreditations).","Price Cap","Charged Directly to Customer",null,null,1422.11,1564.32]
["Management System Re-Evaluation","Quality assessment (QA) process: This is conducted on request form existing service providers and design consultants with the intent to improve their management system score.","Price Cap","Charged Directly to Customer",null,null,7265.52,7992.07]
["Shared Assets Authority","High Level quality assessment (QA) and capability process: This is conducted to ensure the applicant has adequate Safety and QA documentation to meet Legislative and Energex WCS Requirements. Also involves a capability assessment of the applicant's ability to conduct the work. \n","Price Cap","Charged Directly to Customer",null,null,5449.14,5994.05]
["Auxiliary Metering Servies"]
["Meter Installations"]
["Meter Maintenance","Remove Meter - After hours provision of service (incremental costs only).","Price Cap",536,"AARM1AH","AFTER HOURS METER REMOVAL - NO CT",55.73,{"$f":"ROUND(G142*1.1,2)","v":61.3}]
[0,0,"Price Cap",537,"AARMCTAH","AFTER HOURS METER REMOVAL - CT",177.69,195.46]
[0,"Customer requested meter accuracy testing of type 5-6 meter (physically test meter).","Price Cap Sch 8",704,"MIMT1MB","BUSINESS HOURS - NO CT",391.15,430.27]
[0,0,"Price Cap Sch 8",706,"MIMT2MB","BUSINESS HOURS - CT",815.6,897.16]
[0,"Customer requested meter inspection & investigation (no physical testing of meter) no fault in meter found.","Price Cap",957,"MSINSS","BUSINESS HOURS - NO CT",96.06,105.67]
[0,0,"Price Cap",965,"MCINSSA","AFTER HOURS - NO CT",173.32,190.65]
[0,0,"Price Cap",967,"MCINSST","ANYTIME - NO CT",173.32,190.65]
[0,0,"Price Cap",959,"MSINSC","BUSINESS HOURS - CT",357.08,392.79]
[0,0,"Price Cap",969,"MCINSCA","AFTER HOURS - CT",509.57,560.53]
[0,0,"Price Cap",971,"MCINSCT","ANYTIME - CT",509.57,560.53]
[0,"Customer Requested Meter Reconfiguration.","Price Cap",1200,"MRCL1M","CONTROLLED LOAD - NO CT",97.97,107.77]
[0,0,"Price Cap",1202,"MRCL2M","CONTROLLED LOAD - CT",451.07,496.18]
[0,0,"Price Cap",1204,"MRCT1M","BUSINESS HOURS - CHANGE TARIFF - NO CT",97.97,107.77]
[0,0,"Price Cap",1212,"MRCT1MA","AFTER HOURS - ONE TARIFF TO ANOTHER - NO CT",115.81,127.39]
[0,0,"Price Cap",1220,"MRCT1MT","ANYTIME - ONE TARIFF TO ANOTHER - NO CT",115.81,{"$f":"ROUND(G156*1.1,2)","v":127.39}]
[0,0,"Price Cap",1206,"MRCT2M","BUSINESS HOURS - CHANGE TARIFF - CT",451.07,496.18]
[0,0,"Price Cap",1214,"MRCT2MA","AFTER HOURS - ONE TARIFF TO ANOTHER - CT",643.70000000000005,708.07]
[0,0,"Price Cap",1222,"MRCT2MT","ANYTIME - MTr RECONFIG CHNG CTRL LOAD  - CT",643.70000000000005,708.07]
[0,0,"Price Cap",1201,"MRRT1M","Time of Use TRANSFER - NO CT",149.47999999999999,164.43]
[0,0,"Price Cap",1203,"MRRT2M","Time of Use TRANSFER - CT",498.28,548.11]
[0,0,"Price Cap",1205,"MRRV1M","Time of Use REVERSION",97.97,107.77]
[0,"Change Timeswitch.","Price Cap",1208,"MRCTS1M","BUSINESS HOURS - NO CT",131.13,144.24]
[0,0,"Price Cap",1210,"MRCTS2M","BUSINESS HOURS - CT",414.36,455.8]
[null,"Integrity verification as a result of a meter alteration – meter is being relocated or meter wiring altered and requires DNSP to visit site to verify the integrity of the metering equipment (Move Meter).","Price Cap",512,"AAMM1M","BUSINESS HOURS - NO CT",137.01,150.71]
[null,0,"Price Cap",513,"AAMM1MAH","AFTER HOURS - NO CT",195.94,215.53]
[null,0,"Price Cap",517,"AAMM1MAT","ANYTIME - NO CT",195.94,215.53]
[null,0,"Price Cap",514,"AAMM2M","BUSINESS HOURS - CT",849.05,933.96]
[null,0,"Price Cap",515,"AAMM2MAH","AFTER HOURS - CT",1211.6300000000001,1332.79]
[null,0,"Price Cap",519,"AAMM2MAT","ANYTIME - CT",1211.6300000000001,1332.79]
[0,"Integrity verification as a result of a meter alteration – meter is being relocated or meter wiring altered and requires DNSP to visit site to verify the integrity of the metering equipment (Move Meter).","Price Cap","TBA","TBA","BUSINESS HOURS - NO CT (no travel)",113.34,124.67]
[0,0,"Price Cap","TBA","TBA","AFTER HOURS - NO CT (no travel)",161.74,177.91]
[0,0,"Price Cap","TBA","TBA","ANYTIME - NO CT (no travel)",161.74,177.91]
[0,0,"Price Cap","TBA","TBA","BUSINESS HOURS - CT (no travel)",712.68,783.95]
[0,0,"Price Cap","TBA","TBA","AFTER HOURS - CT (no travel)",1017.02,1118.72]
[0,0,"Price Cap","TBA","TBA","ANYTIME - CT (no travel)",1017.02,1118.72]
["Meter Reading","Check Read","Price Cap Sch 8",400,"SRCR",null,8.17,8.99]
[0,"Final Read","Price Cap Sch 8",402,"SRFR",null,8.17,8.99]
[null,"Transfer Read","Price Cap Sch 8",404,"SRTR",null,8.17,{"$f":"ROUND(G179*1.1,2)","v":8.99}]
[0,"Estimated Read","Price Cap Sch 8",null,null,null,8.27]
["Type 5-7 non standard metering data services","A request to conduct a site review of the state of the customer’s metering installation(s) (no physical meter test), i.e. multiple premises.  Includes provision of meter data above the minimum requirements and meter inspection to check a reported or suspected fault.  Does not include provision of any hardware.","Price Cap",955,"MSINS","BUSINESS HOURS - FIRST UNIT",136.91,150.6]
[0,0,"Price Cap",961,"MSINSA","AFTER HOURS - FIRST UNIT",390.74,429.81]
[null,null,null,963,"MSINST","ANYTIME - FIRST UNIT",390.74,429.81]
[null,null,null,null,null,"BUSINESS HOURS - ADDITIONAL UNITS",68.73,429.81]
[null,null,null,null,null,"AFTER HOURS - ADDITIONAL UNITS",196.15,429.81]
[0,0,"Price Cap",null,null,"ANYTIME - ADDITIONAL UNITS",196.15,429.81]
["CT Metering","Provision, installation, testing and maintenance of instrument transformers for metering purposes.","Price Cap",539,"CTP&T",null,1016.58,1118.24]
[0,"Testing and maintenance of instrument transformers for metering purposes.","Price Cap",540,"CTT&MT",null,186.2,204.82]
["Ancillary Network Services"]
["Other Recoverable Works"]
["Customer consultation or appointment.\n","A visit to the customers premise to advise on electrical supply matters, could be for various reasons.","Price Cap",952,"MSAPWR","Complex (customer requested)",236.03,{"$f":"ROUND(G191*1.1,2)","v":259.63}]
[null,null,"Price Cap",1074,"MCMSAPWR","Complex (third party requested)",236.03,259.63]
[null,null,"Price Cap",953,"MSAPWRS","Simple (customer requested)",107.52,115.18]
[null,null,"Price Cap",1075,"MCMSAPWRS","Simple (third party requested)",107.52,118.27]
["Attendance at customers premises to perform a statutory right where access is prevented","Energex attends a site at the customers request and is unable to perform job due to customers fault / fault of a third party.","Price Cap",1044,"MSWTV","BUSINESS HOURS - TECHNICAL (customer at fault)",94.41,103.85]
[null,null,"Price Cap",1069,"MCMSWTV","BUSINESS HOURS - TECHNICAL (third party at fault)",94.41,103.85]
[0,0,"Price Cap",1050,"MSWTV2CR","BUSINESS HOURS - TECHNICAL (2 crew) (customer at fault)",188.81,207.69]
[null,null,"Price Cap",1072,"MCMSWTV2CR","BUSINESS HOURS - TECHNICAL (2 crew) (third party at fault)",188.81,207.69]
[null,null,"Price Cap",1045,"MSWTVA","AFTER HOURS - TECHNICAL (customer at fault)",134.72999999999999,148.19999999999999]
[null,null,"Price Cap",1070,"MCMSWTVA","AFTER HOURS - TECHNICAL (third party at fault)",134.72999999999999,148.19999999999999]
[0,0,"Price Cap",1051,"MSWTV2CRAH","AFTER HOURS - TECHNICAL (2 crew) (customer at fault)",269.45,296.39999999999998]
[null,null,"Price Cap",1073,"MCMS2MWTVA","AFTER HOURS - TECHNICAL (2 crew) (third party at fault)",269.45,296.39999999999998]
[null,null,"Price Cap",1047,"MSWTVT","ANYTIME - TECHNICAL (customer at fault)",134.72999999999999,148.19999999999999]
[null,null,"Price Cap",1071,"MCMSWTVT","ANYTIME - TECHNICAL (third party at fault)",134.72999999999999,148.19999999999999]
[null,null,"Price Cap",1046,"MSWTV2","BUSINESS HOURS - NON TECHNICAL (customer at fault)",11.26,12.39]
[null,null,"Price Cap",1048,"MSWTV2A","AFTER HOURS - NON TECHNICAL (customer at fault)",80.7,88.77]
[0,0,"Price Cap",1049,"MSWTV2T","ANYTIME - NON TECHNICAL (customer at fault)",80.7,88.77]
["Public Lighting Services"]
["Provision, Construction and maintenance of public lighting"]
["Application assessment, design review and audit","Rate 2 public lighting services.\n\nDesign assessment and preparation of offer.\nNumber of new, modified or recovered sites (i.e. stations numbers excluding street light pits and conduits)","Price Cap","Charged Directly to Customer",null,"RESUBMISSION",173.88,{"$f":"ROUND(G210*1.1,2)","v":191.27}]
["00:00:00","Rate 3 public lighting services.\n\nDesign Assessment and Preparation of Offer\nNumber of new, modified or recovered sites (i.e. stations numbers excluding street light pits and conduits).","Price Cap","Charged Directly to Customer",null,"0-6 SITES",86.94,95.63]
["00:00:00","00:00:00","Price Cap","Charged Directly to Customer",null,"7-30 SITES",130.41999999999999,143.46]
["00:00:00","00:00:00","Price Cap","Charged Directly to Customer",null,"31+ SITES",260.83,286.91000000000003]
["Provision of glare shields, vandal guards, luminaire replacement with aero screens","Replacement of existing streetlight luminaries with aero screen low glare luminaries.","Price Cap",600,"SLAU",null,552.14,607.35]
[0,"Customer requests the supply and installation of adhesive luminaire glare screen(s).","Price Cap",602,"SLLGAD",null,200.71,220.78]
[0,"Customer requests the supply and installation of standard luminaire glare screen(s) – internal.","Price Cap",604,"SLLGSDI",null,164.05,180.46]
["Note: \n1. The prices for the ACS services subject to Schedule 8 are currently based on the AER's approved prices.  These prices will be updated when Schedule 8 prices are published."]

{"sheet":"Metering Service Charge 2018-19","index":4,"n_rows":61,"n_cols":6,"rows_kept":61,"cut":false,"hidden":false,"merged":[[60,0,60,5],[33,1,34,1],[35,1,38,1],[39,1,42,1],[43,1,44,1],[46,0,59,0],[46,1,49,1],[50,1,52,1],[53,1,56,1],[57,1,59,1],[13,0,45,0],[15,1,18,1],[19,1,22,1],[25,1,28,1],[29,1,32,1],[23,1,24,1],[9,0,12,0],[9,1,12,1],[9,2,12,2],[9,3,12,3],[9,4,12,4]]}
["2018-19 Metering Service Charge"]
[null,null,null,null,"Daily (cents)","2018-19"]
[null,null,null,"Primary","Non Capital",2.3140000000000001]
[null,null,null,null,"Capital",7.1669999999999998]
[null,null,null,"Load Control","Non Capital",0.69399999999999995]
[null,null,null,null,"Capital",2.15]
[null,null,null,"Solar PV","Non Capital",1.619]
[null,null,null,null,"Capital",5.0170000000000003]
[]
["Tariff Class","Tariff Description","SCS Network Tariff Code","Billing Code for (SCS tariff plus applicable metering service charge)","Metering Service3, 4 Charge applicable","Metering Service Charge "]
[null,null,null,null,null,"(c/day)"]
[]
[]
["SAC","Large",8100,8100,"N/A"]
[null,"Small",8300,8300,"N/A"]
[null,"Business Flat",8500,8500,"Capital and Non-capital",9.4809999999999999]
[null,null,8500,"8520","Non-capital only",2.3140000000000001]
[null,null,8500,8550,"N/A5"]
[null,null,8500,"8570","Capital only",7.1669999999999998]
[null,"Business ToU",8800,8800,"Capital and Non-capital",9.4809999999999999]
[null,null,8800,8820,"Non-capital only",2.3140000000000001]
[null,null,8800,8850,"N/A5"]
[null,null,8800,"8870","Capital only",7.1669999999999998]
[null,"Business Demand","71002",7100,"Capital only",7.1669999999999998]
[null,null,"71002",7150,"N/A5"]
[null,"Residential Flat",8400,8400,"Capital and Non-capital",9.4809999999999999]
[null,null,8400,8420,"Non-capital only",2.3140000000000001]
[null,null,8400,8450,"N/A5"]
[null,null,8400,"8470","Capital only",7.1669999999999998]
[null,"Residential ToU",8900,8900,"Capital and Non-capital",9.4809999999999999]
[null,null,8900,8920,"Non-capital only",2.3140000000000001]
[null,null,8900,8950,"N/A5"]
[null,null,8900,"8970","Capital only",7.1669999999999998]
[null,"Residential Demand","70002",7000,"Capital only",7.1669999999999998]
[null,null,"70002",7050,"N/A5"]
[null,"Super Economy",9000,9000,"Capital and Non-capital",2.8439999999999999]
[null,null,9000,9020,"Non-capital only",0.69399999999999995]
[null,null,9000,9050,"N/A5"]
[null,null,9000,"9070","Capital only",2.15]
[null,"Economy",9100,9100,"Capital and Non-capital",2.8439999999999999]
[null,null,9100,9120,"Non-capital only",0.69399999999999995]
[null,null,9100,9150,"N/A5"]
[null,null,9100,"9170","Capital only",2.15]
[null,"Smart Control","73002",7300,"Capital only",2.15]
[null,null,"73002",7350,"N/A5"]
[null,"Unmetered",9600,9600,"N/A"]
["PV","Photovoltaic (net)",7500,7500,"Capital & Non-capital",6.6360000000000001]
[null,null,7500,7520,"Non-capital only",1.619]
[null,null,7500,7550,"N/A5"]
[null,null,7500,"7570","Capital only",5.0170000000000003]
[null,"Photovoltaic (gross)",9700,9700,"Capital and Non-capital",6.6360000000000001]
[null,null,9700,9750,"N/A5"]
[null,null,9700,"9770","Capital only",5.0170000000000003]
[null,"Photovoltaic (net)",9800,9800,"Capital and Non-capital",6.6360000000000001]
[null,null,9800,9820,"Non-capital only",1.619]
[null,null,9800,9850,"N/A5"]
[null,null,9800,"9870","Capital only",5.0170000000000003]
[null,"Photovoltaic (net with FiT)",9900,9900,"Capital and Non-capital",6.6360000000000001]
[null,null,9900,9950,"N/A5"]
[null,null,9900,"9970","Capital only",5.0170000000000003]
["\nNotes:\n1. All prices exclude GST.\n2. Tariffs available since 1 July 2017 subject to metering.\n3. The capital component applies to all existing Type 6 meter connections before 1 July 2015 regardless of whether customers elect to churn to an alternative meter provider or upgrades. Churning customer will continue to pay the capital component on an on-going basis to recover the residual value of the stranded assets.\n4. Non-capital charge comprises ongoing Energex initiated meter maintenance, cyclic meter reading and data storage and provision. The non-capital component applies to both existing and new/additional Type 6 meter connections. To clarify, the non-capital component will not apply to churning metering customers.\n5. Metering charges for Type 1-4 meters are not regulated, therefore Energex does not pass on a charge to these customers.\n\n"]

{"sheet":"Services with no charge","index":5,"n_rows":30,"n_cols":6,"rows_kept":30,"cut":false,"hidden":false,"merged":[[24,2,25,2],[24,3,25,3],[24,4,25,4],[0,0,1,0],[0,1,1,1],[0,2,1,2],[0,3,1,3],[0,4,1,4],[2,0,19,0],[26,0,27,0],[28,0,29,0],[20,0,21,0],[24,0,25,0],[24,1,25,1]]}
["Category","Description","Product code","Full description","Peace charge code","Price"]
[null,null,null,null,null,"($)"]
["New Connections","U/G Perm Supply - CT BH","NCUP2MB","New underground connection. CT. BH.",100,"-"]
[null,"U/G Perm Supply - No CT BH","NCUP1MB","New underground connection. No CT. BH.",158,"-"]
[null,"U/G Perm Supply - CT AH","NCUP2MA","New underground connection. CT. AH.",106,"-"]
[null,"U/G Perm Supply - No CT AH","NCUP1MA","New underground connection. No CT. AH.",156,"-"]
[null,"U/G Perm Supply - CT Anytime","NCUP2MT","New underground connection. CT. Anytime.",118,"-"]
[null,"U/G Perm Supply - No CT Anytime","NCUP1MT","New underground connection. No CT. Anytime.",116,"-"]
[null,"O/H Perm Supply - CT BH","NCOP2MB","New overhead connection. CT. BH.",104,"-"]
[null,"O/H Perm Supply - No CT BH","NCOP1MB","New overhead connection. No CT. BH.",102,"-"]
[null,"O/H Perm Supply - CT AH","NCOP2MA","New overhead connection. CT. AH.",110,"-"]
[null,"O/H Perm Supply - No CT AH","NCOP1MA","New overhead connection. No CT. AH.",108,"-"]
[null,"O/H Perm Supply - CT Anytime","NCOP2MT","New overhead connection. CT. Anytime.",114,"-"]
[null,"O/H Perm Supply - No CT Anytime","NCOP1MT","New overhead connection. No CT. Anytime.",112,"-"]
[null,"Temp/Perm - CT BH","NCTP2MB","New temporary connection in permanent. CT. BH.",150,"-"]
[null,"Temp/Perm - No CT BH","NCTP1MB","New temporary connection in permanent. No CT. BH.",148,"-"]
[null,"Temp/Perm - CT AH","NCTP2MA","New temporary connection in permanent. CT. AH.",134,"-"]
[null,"Temp/Perm - No CT AH","NCTP1MA","New temporary connection in permanent. No CT. AH.",132,"-"]
[null,"Temp/Perm - CT Anytime","NCTP2MT","New temporary connection in permanent. CT. Anytime.",138,"-"]
[null,"Temp/Perm - No CT Anytime","NCTP1MT","New temporary connection in permanent. No CT. Anytime.",136,"-"]
["Unmetered Supply","UMS Connection Point Available","NCUMSC","New unmetered connection where connection point is available.",152,"-"]
[null,"UMS Connection Point Not Available","NCUMSCN","New unmetered connection where connection point is unavailable.",153,"-"]
["No Charge","No Charge","No Charge","No Charge",9999,"-"]
[]
["Category","Description","Product code","Full description","Peace charge code","Price"]
[null,null,null,null,null,"($)"]
["Additions & Alterations","Remove Meter - CT","AARM2M","Adds & Alts: Remove meter. CT. BH",526,"-"]
[null,"Remove Meter - No CT","AARM1M","Adds & Alts: Remove meter. No CT. BH.",524,"-"]
["Meter Investigations","Tamper - CT B/H Only","MIT2MB","Investigate meter for tampering. CT. BH.",710,"-"]
[null,"Tamper - No CT B/H Only","MIT1MB","Investigate meter for tampering. No CT. BH.",708,"-"]

{"sheet":"Public Lighting 2018-19","index":6,"n_rows":8,"n_cols":3,"rows_kept":8,"cut":false,"hidden":false,"merged":[[7,0,7,2]]}
["2017-18 Street Light Utility Charges"]
[]
["$/Day","Category","2018-191"]
["Major Street Lights","non-contributed",0.84299999999999997]
[null,"contributed",0.29299999999999998]
["Minor Street Lights","non-contributed",0.38700000000000001]
[null,"contributed",0.14199999999999999]
["Notes:\n1. All prices exclude GST."]